Cogmind - Beta 13 @@@ ROGUE MODE // 2024.04.18 @ 06:38:31 Player: sick0r Result: Destroyed by G-34 Mercenary with Small Laser Performance ------------- Evolutions (0) 0 Regions Visited (2) 400 Robots Destroyed (13) 65 Value Destroyed (416) 416 Prototype IDs (1) 20 Alien Tech Used (0) 0 Bonus (0) 0 TOTAL SCORE: 901 Bonus ------- None Cogmind --------- Core Integrity 0/250 Matter 290/300 Energy 100/100 System Corruption 1% Temperature Cool (6) Movement Rolling (160) Ox4 Location -10/Mines Parts ------- > --- POWER (1) -------- (None) > --- PROPULSION (2) --- Compact Wheel Compact Wheel > --- UTILITY (2) ------ Cargo Storage Unit > --- WEAPON (2) ------- Grenade Launcher > --- INVENTORY (30) --- Light Treads Wheel Wheel Heat Sink Medium Battery (150) Targeting Computer Weapon Shielding Medium Laser Small Laser Peak State ------------ > --- POWER ------------ Ion Engine > --- PROPULSION ------- Wheel Wheel > --- UTILITY ---------- Cargo Storage Unit > --- WEAPON ----------- Particle Gun Advanced Beam Cannon > --- INVENTORY -------- Light Treads Medium Laser Small Laser [Rating: 10] Favorites ----------- Power Light Ion Engine Engine Light Ion Engine Propulsion Wheel Treads Light Treads Leg Aluminum Leg Wheel Wheel Utility Cargo Storage Unit Storage Cargo Storage Unit Weapon Particle Gun Energy Gun Particle Gun Energy Cannon Advanced Beam Cannon Ballistic Gun Assault Rifle Launcher Grenade Launcher Build | -11 -10 -10 ------- Run | Yrd Mat Min Slots Evolved . | . . . Power . | . . . Propulsion . | . . . Utility . | . . . Weapon . | . . . Parts Attached 24 | 5 16 3 Power 4 | . 3 1 Engine 4 | . 3 1 Core . | . . . Reactor . | . . . Propulsion 10 | 2 8 . Treads 1 | 1 . . Leg 4 | 1 3 . Wheel 5 | . 5 . Hover . | . . . Flight . | . . . Utility 2 | 1 1 . Device . | . . . Storage 2 | 1 1 . Processor . | . . . Hackware . | . . . Protection . | . . . Artifact . | . . . Weapon 8 | 2 4 2 Energy Gun 3 | 1 2 . Energy Cannon 2 | . 2 . Ballistic Gun 2 | 1 . 1 Ballistic Cannon . | . . . Launcher 1 | . . 1 Special Weapon . | . . . Impact Weapon . | . . . Slashing Weapon . | . . . Piercing Weapon . | . . . Special Melee Weapon . | . . . Unidentified Prototypes 1 | . 1 . Parts Lost 6 | . 4 2 Power 3 | . 2 1 Propulsion 1 | . 1 . Utility . | . . . Weapon 2 | . 1 1 Highest Loss Streak 2 | . 2 1 To Critical Strikes . | . . . Average Slot Usage (%) 65 | . 67 57 Engine 5 | . 6 1 Leg 7 | . 9 . Wheel 19 | . 17 28 Storage 14 | . 14 14 Energy Gun 12 | . 15 . Energy Cannon 1 | . 1 . Ballistic Gun 3 | . 2 8 Launcher 1 | . . 4 Naked Turns . | . . . Heaviest Build 152 | 8 152 144 Greatest Support 32 | 20 32 32 Greatest Overweight (x) 14 | . 14 4 Average Overweight (x) 3 | . 3 4 Largest Inventory Capacity 30 | 8 30 30 Average Capacity 23 | 7 22 30 Most Carried 11 | 8 11 10 Average Carried 6 | 5 6 9 Final Capacity 30 | 8 30 30 Final Carried 10 | 7 10 9 Class Distribution -------------------- 71% | Hauler-Mutant 28% | Mutant Dominant Class ---------------- Hauler-Mutant | -10/Materials Hauler-Mutant | -10/Mines Resources | -11 -10 -10 ----------- Run | Yrd Mat Min Matter Collected 561 | 202 267 92 Remotely . | . . . Salvage Created 450 | . 286 164 Parts 26 | . 17 9 Haulers Intercepted . | . . . Recyclers Shooed . | . . . Parts Field Recycled . | . . . Retrieved Matter . | . . . Parts Self-Destructed . | . . . Prevented . | . . . Kills | -11 -10 -10 ------- Run | Yrd Mat Min Combat Hostiles Destroyed 11 | . 7 4 Guns 7 | . 5 2 Cannons 1 | . 1 . AOE 2 | . . 2 Classes Destroyed 3 | . 3 . Watcher 2 | . 2 . Swarmer 3 | . 3 . Grunt 8 | . 4 4 Best Kill Streak 2 | . 2 2 Combat Bots Only 2 | . 2 2 Max Kills in Single Turn 1 | . 1 1 Gunslinging . | . . . Exploded 1 | . . 1 Melee . | . . . Uniques/NPCs Destroyed . | . . . Combat | -11 -10 -10 -------- Run | Yrd Mat Min Hostile Shots Fired 59 | . 33 26 Missed 8 | . 5 3 Damage Taken 865 | . 493 372 Core 250 | . 99 151 Absorbed by Shields . | . . . Regen/Repaired (Parts) 99 | . 99 . Core Remaining (%) 100 | 100 . . Volleys Fired 55 | . 29 26 Largest 2 | . 2 1 Hottest 133 | . 133 30 Shots Fired 81 | . 55 26 Gun 63 | . 40 23 Cannon 15 | . 15 . Launcher 3 | . . 3 Special . | . . . Kinetic 32 | . 9 23 Thermal 46 | . 46 . Explosive 3 | . . 3 Electromagnetic . | . . . Robot Hit Streak 12 | . 9 12 Robot Miss Streak 4 | . 4 2 Penetration Max . | . . . Secondary Targets . | . . . Shots Hit Robots 51 | . 30 21 Core Hits 22 | . 10 12 Critical Kills . | . . . Critical Parts Destroyed . | . . . Critical Strikes 1 | . 1 . Burn 1 | . 1 . Melee Attacks . | . . . Impact . | . . . Slashing . | . . . Piercing . | . . . Sneak Attacks . | . . . Combat Hostiles . | . . . Follow-up Attacks . | . . . Damage Inflicted 748 | . 488 260 Guns 532 | . 367 165 Cannons 121 | . 121 . Explosions 95 | . . 95 Melee . | . . . Ramming . | . . . Kinetic 215 | . 50 165 Thermal 438 | . 438 . Explosive 95 | . . 95 Electromagnetic . | . . . Impact . | . . . Slashing . | . . . Piercing . | . . . Highest Corruption 1 | . 1 1 Average Corruption 1 | . 1 1 Corruption Purged . | . . . Corruption Blocked . | . . . Effects 4 | . 2 2 Message Errors 1 | . . 1 Matter Fused 1 | . 1 . Heat Flow Errors 1 | . 1 . Data Loss (major) 1 | . . 1 Overload Shots . | . . . Overflow Damage . | . . . Projectiles . | . . . Explosions . | . . . Melee . | . . . Knockbacks . | . . . Impact . | . . . Kinetic . | . . . Secondary . | . . . Self-Inflicted Damage 23 | . . 23 Shots 1 | . . 1 Rammed . | . . . Targets Rammed . | . . . Kicked . | . . . Crushed . | . . . Highest Temperature 651 | . 651 24 Average Temperature 174 | . 193 7 Received Heat Transfer 450 | . 198 252 Effects 13 | . 13 . Shutdowns 1 | . 1 . Energy Bleed 3 | . 3 . Interference 2 | . 2 . Matter Decay 1 | . 1 . Short Circuit 1 | . 1 . Damage (minor) 2 | . 2 . Damage (major) 2 | . 2 . Damage (core) 1 | . 1 . Siege Activations . | . . . Robots Corrupted . | . . . Combat Hostiles . | . . . Parts Fried . | . . . Impact Corruptions . | . . . Robots Melted 1 | . 1 . Combat Hostiles 1 | . 1 . Parts Melted 1 | . 1 . Heat Transferred 1036 | . 1036 . Parts Sabotaged . | . . . Parts Stolen . | . . . Parts Stripped . | . . . Power Chain Reactions . | . . . Alert | -11 -10 -10 ------- Run | Yrd Mat Min Peak Influence 174 | . 174 143 Initial 3 | . . 3 Average 70 | . 78 52 Maximum Alert Level . | . . . Low Security (%) 100 | 100 100 100 Level 1 . | . . . Level 2 . | . . . Level 3 . | . . . Level 4 . | . . . Level 5 . | . . . High Security . | . . . Max Security . | . . . Squads Dispatched 1 | . 1 . Investigation 1 | . 1 . Extermination . | . . . Reinforcement . | . . . Assault . | . . . Garrison . | . . . Intercept . | . . . Searches Triggered . | . . . Construction Impeded . | . . . Haulers Reinforced . | . . . Active Scanning Responses . | . . . Cargo Convoy Interrupts . | . . . Stealth | -11 -10 -10 --------- Run | Yrd Mat Min Distress Signals 1 | . 1 . Communications Jammed . | . . . Distress Signals . | . . . Times Spotted 20 | . 14 6 Peak Tracking Total 3 | . 3 3 Tactical Retreats 2 | . 2 . Traps | -11 -10 -10 ------- Run | Yrd Mat Min Traps Triggered 8 | . 8 . Indirectly . | . . . Trap Hack Attempts . | . . . Triggered . | . . . Disarmed . | . . . Reprogrammed . | . . . Reused . | . . . Traps Extracted . | . . . Installed . | . . . Triggered . | . . . Machines | -11 -10 -10 ---------- Run | Yrd Mat Min Machines Disabled 3 | . 2 1 Max in Single Turn 1 | . 1 1 Machines Repaired . | . . . Machines Dismantled . | . . . Machines Sabotaged . | . . . Overloaded Fab Kills . | . . . Hacking | -11 -10 -10 --------- Run | Yrd Mat Min Machines Accessed 1 | . 1 . Terminals . | . . . Fabricators . | . . . Repair Stations 1 | . 1 . Recycling Units . | . . . Scanalyzers . | . . . Garrison Access . | . . . Total Hacks 6 | . 6 . Successful 6 | . 6 . Failed . | . . . Catastrophic . | . . . Database Lockouts . | . . . Manual . | . . . Terminals . | . . . Fabricators . | . . . Repair Stations 6 | . 6 . Recycling Units . | . . . Scanalyzers . | . . . Garrison Access . | . . . Terminal Hacks . | . . . Fabricator Hacks . | . . . Repair Station Hacks 6 | . 6 . Scan Component 3 | . 3 . Repair 3 | . 3 . Recycling Unit Hacks . | . . . Scanalyzer . | . . . Garrison Access Hacks . | . . . Unauthorized Hacks . | . . . Terminals . | . . . Fabricators . | . . . Repair Stations . | . . . Recycling Units . | . . . Scanalyzers . | . . . Garrison Access . | . . . Data Cores Recovered . | . . . Used . | . . . Hacking Detections 1 | . 1 . Full Trace Events . | . . . Feedback Events . | . . . Feedback Blocked . | . . . Robot Schematics Acquired . | . . . Robots Built . | . . . Authchips . | . . . Time . | . . . Total Robot Build Rating . | . . . Part Schematics Acquired . | . . . Parts Built . | . . . Authchips . | . . . Time . | . . . Total Part Build Rating . | . . . Parts Repaired 3 | . 3 . Time 78 | . 78 . Parts Recycled . | . . . Recycled Matter . | . . . Retrieved Matter . | . . . Retrieved Components . | . . . Parts Scanalyzed . | . . . Part Schematics Acquired . | . . . Parts Damaged . | . . . Bothacking | -11 -10 -10 ------------ Run | Yrd Mat Min Used RIF Installer . | . . . Robots Hacked . | . . . Non-combat . | . . . Combat . | . . . Robot Hacks Applied . | . . . Relay Couplers Released . | . . . Fabnet Peak Effective % . | . . . Robots Rewired . | . . . Allies Hacked . | . . . Hacks Repelled . | . . . Allies | -11 -10 -10 -------- Run | Yrd Mat Min Total Allies . | . . . Largest Group . | . . . Highest-Rated Group . | . . . Highest-Rated Ally . | . . . Total Orders . | . . . Ally Attacks . | . . . Total Damage . | . . . Kills . | . . . Allies Corrupted . | . . . Allies Melted . | . . . Intel | -11 -10 -10 ------- Run | Yrd Mat Min Robot Analysis Total . | . . . Derelict Logs Recovered 1 | . . 1 Drone Launches . | . . . Drone Recoveries . | . . . Exploration | -11 -10 -10 ------------- Run | Yrd Mat Min Turns Passed 1551 | 63 1182 306 Spaces Moved 837 | 44 635 158 Core 12 | 12 . . Treads 1 | 1 . . Legs 320 | 31 289 . Wheels 504 | . 346 158 Hover . | . . . Flight . | . . . Fastest Speed 50 | 50 120 160 Average Speed 152 | 101 153 160 Slowest Speed 290 | 160 290 160 Overloaded Moves . | . . . Propulsion Burnouts . | . . . Robots Hopped . | . . . Cave-ins Triggered . | . . . Exploration Rate (%) 42 | 4 86 36 Regions Visited 2 Branch Regions 1 Pre-discovered Areas 1 | . . 1 Known Exits Taken . | . . . Unknown Exits Taken 2 | 1 1 . Scrap Searched . | . . . Spaces Dug . | . . . Terrain Destroyed 28 | . . 28 Melee . | . . . Projectile . | . . . AOE 28 | . . 28 Terrain Rammed . | . . . Walls Destroyed . | . . . Machines Disabled . | . . . Actions | -11 -10 -10 --------- Run | Yrd Mat Min Total 1034 | 60 784 190 Wait 90 | 4 85 1 Move 835 | 43 634 158 Hop . | . . . Pick Up 25 | 8 15 2 Fast Attach 9 | 4 5 . Attach 11 | 1 7 3 Detach 1 | . 1 . Swap 4 | . 4 . Drop 4 | . 4 . Fire 55 | . 29 26 Melee . | . . . Ram . | . . . Kick . | . . . Crush . | . . . Escape Stasis . | . . . Rewire . | . . . Trap . | . . . Miscellaneous . | . . . Route ------- -11/Scrapyard -10/Materials (discovered 4 exits: [*Mat x2] / [*Min] / [*Sub]) -10/Mines History --------- Turn | Location | Event 11 | -11/Scrapyard | Discovered new exit (range 15) 64 | -11/Scrapyard | Entered Materials 210 | -10/Materials | Discovered new exit (range 15) 309 | -10/Materials | Build established: Mutant 360 | -10/Materials | Discovered new exit (range 16) 698 | -10/Materials | Discovered new exit (range 10) 743 | -10/Materials | Build established: Hauler-Mutant 880 | -10/Materials | Discovered new exit (range 11) 1167 | -10/Materials | Repaired Wheel 1194 | -10/Materials | Repaired Med. Laser 1221 | -10/Materials | Repaired Com. Wheel 1246 | -10/Materials | Entered Mines 1383 | -10/Mines | Learned location of Zion (-7) 1404 | -10/Mines | Core integrity fell below 50% 1421 | -10/Mines | Core integrity fell below 20% 1552 | -10/Mines | Destroyed by G-34 Mercenary with Small Laser Last Messages --------------- K-01 Serf collects debris. Lgt. Ion Engine destroyed. K-01 Serf collects debris. G-34 Mercenary destroyed. Critical hit (Burn: +37). G-47 Trooper destroyed. R-06 Scavenger collects Imp. Heat Sink. Acquired 32 matter. R-06 Scavenger collects Sml. Laser. C FCFCFMG5WLM8 U-05 Engineer builds a Wall. Core Extractor disabled. Map ----- +----------------------------------------------------+ | | | | | | | ???????????????????????????????? | | ???????????????????????????????? | | ?????####??????????????????????? | | ????## #####?????????????????? | | ????# #?????????????????? | | ????# #####?????????????? | | ?????# #######???????? | | ?????## ### #?????? | | ??????## ##?# ####### #?????? | | ???????## ##?## ##????? ??????? | | ????????# #??# #????? ##????? | | ????????# #??# #????? ????? | | ????????# #??## #????? ????? | | ????????# ###### ##???? ????? | | ????????# ## #???? ????? | | ????????# #???? ????? | | ????????#### ## #???? ????? | | ???????????# ### ##????# ????? | | ???????????# #?###?????# #????? | | ???????##### ##????????# #????? | | ??????## #????????# #????? | | ????### ########## #????? | | ??### # g @#????? | | ??## ############????? | | ?### ### """ #???????????????? | | ## [ ! # """ #???????????????? | | # =%= #########???????????????? | | [ ##???????????????????????? | | #????????????????????????? | | ######????????????????????????? | | #?????????????????????????????? | | #######???????????????????????? | | % #???????????????????????? | | [ #???????????????????????? | | ##### #???????????????????????? | | ?????? #???????????????????????? | | ???????????????????????????????? | | ???????????????????????????????? | | ???????????????????????????????? | | ???????????????????????????????? | | ???????????????????????????????? | | ???????????????????????????????? | | ???????????????????????????????? | | ???????????????????????????????? | | ???????????????????????????????? | | ???????????????????????????????? | | ???????????????????????????????? | +----------------------------------------------------+ Best States ------------- Heat Dissipation 25 Energy Generation 10 Energy Capacity 250 Matter Stores 300 Matter Capacity 300 Sight Range 16 Terrain Scan Density 10 Evasion (%) 55 Item Schematics ----------------- None Robot Schematics ------------------ None Fabricated ------------ Nothing Alien Tech Used ----------------- None Achievements -------------- None Challenges ------------ None Game ------ Seed AblativeEfficiencyFlail Manual? 0 Play Time 00:13:59 Cumulative 18.9 hours Start 2024.04.18 @ 06:26:52 End 2024.04.18 @ 06:38:31 Sessions 1 Manual Loads 0 Difficulty Rogue Special Mode None Game No. 21 Rogue 21 Adventurer 0 Explorer 0 Win Type - Total 0 Types 0/0/0/0/0/0/0/0/0 Lore% 15 Gallery% 20 Achievement% 100 Wizard Run 0 Options --------- Layout 1 ASCII 0 Keyboard 0 Movement Mouse Keybinds 0 Fullscreen 1 Font 24/Smallcaps Map View 50x35 Zoom Use 0% Tactical HUD 0 Map Filters NONE Filters NONE Steam 1 RUN: e019c234-f456-48cf-8665-3d7bcba4eb30